fUSD/lending_fUSD_20240418
["ID","MTS","AMOUNT","RATE_DAILY","PERIOD"]
[322891932,1713481837707,-17033.58681155,0.00016795,2]
[322891933,1713481837717,-12790.2459,0.00016795,2]
[322891934,1713481837726,-500.0,0.00016803,2]
[322891935,1713481837735,-26790.30394051,0.00016804,2]
[322891936,1713481837745,-500.0,0.00016812,2]
[322891937,1713481837755,-26790.30394051,0.00016813,2]
[322891938,1713481837766,-500.0,0.00016821,2]
[322891939,1713481837775,-800.0,0.00016822,2]
[322891940,1713481837784,-800.0,0.00016822,2]
[322891941,1713481837793,-26790.30394051,0.00016823,2]
[322891942,1713481837802,-500.0,0.0001683,2]
[322891943,1713481837812,-26790.30394051,0.00016832,2]
[322891944,1713481837821,-500.0,0.00016838,2]
[322891945,1713481837831,-154.94,0.00016839,2]
[322891946,1713481837840,-26790.30394051,0.00016841,2]
[322891947,1713481837850,-500.0,0.00016847,2]
[322891948,1713481837859,-13603.12,0.00016847,2]
[322891949,1713481837869,-19702.76,0.00016847,2]
[322891950,1713481837879,-10753.32,0.00016847,2]
[322891951,1713481837888,-500.0,0.00016847,2]
[322891952,1713481837899,-2478.23,0.00016847,2]
[322891953,1713481837909,-1070.82,0.00016847,2]
[322891954,1713481837918,-579.82,0.00016847,2]
[322891955,1713481837927,-500.0,0.00016847,2]
[322891956,1713481837936,-1065.99,0.00016847,2]
[322891957,1713481837946,-993.02,0.00016847,2]
[322891958,1713481837956,-6477.44,0.00016847,2]
[322891959,1713481837965,-7065.66,0.00016847,2]
[322891960,1713481837974,-2342.65,0.00016847,2]
[322891961,1713481837983,-500.0,0.00016847,2]
[322891962,1713481837992,-3365.03,0.00016848,2]
[322891963,1713481838002,-4439.04,0.00016848,2]
[322891964,1713481838012,-10765.39,0.00016848,2]
[322891965,1713481838021,-5293.26,0.00016848,2]
[322891966,1713481838033,-2245.99,0.00016848,2]
[322891967,1713481838043,-8894.1,0.00016848,2]
[322891968,1713481838053,-500.0,0.00016848,2]
[322891969,1713481838062,-485.87062039,0.00016848,2]
[322891970,1713481838072,-38106.84,0.00016848,2]
[322891971,1713481838082,-11009.35,0.00016848,2]
[322891972,1713481838091,-500.0,0.00016848,2]
[322891973,1713481838103,-4209.2,0.00016848,2]
[322891974,1713481838113,-13603.12,0.00016848,2]
[322891975,1713481838124,-500.0,0.00016848,2]
[322891976,1713481838135,-19702.76,0.00016848,2]
[322891977,1713481838145,-45245.81,0.00016848,2]
[322891978,1713481838154,-10753.32,0.00016848,2]
[322891979,1713481838163,-4418.98,0.00016848,2]
[322891980,1713481838172,-500.0,0.00016848,2]
[322891981,1713481838182,-500.0,0.00016848,2]
[322891982,1713481838191,-2478.23,0.00016848,2]
[322891983,1713481838201,-500.0,0.00016848,2]
[322891984,1713481838212,-3254.4,0.00016848,2]
[322891985,1713481838223,-1070.82,0.00016848,2]
[322891986,1713481838232,-579.82,0.00016848,2]
[322891987,1713481838242,-640.86,0.00016848,2]
[322891988,1713481838251,-434.69836331,0.00016848,2]
[322891989,1713481838261,-2193.52,0.00016848,2]
[322891990,1713481838270,-500.0,0.00016848,2]
[322891991,1713481838279,-1065.99,0.00016848,2]
[322891992,1713481838288,-1065.99,0.00016848,2]
[322891993,1713481838297,-993.02,0.00016848,2]
[322891994,1713481838307,-993.02,0.00016848,2]
[322891995,1713481838318,-7134.75,0.00016848,2]
[322891996,1713481838327,-6477.44,0.00016848,2]
[322891997,1713481838336,-15143.27,0.00016848,2]
[322891998,1713481838346,-7065.66,0.00016848,2]
[322891999,1713481838355,-2844.31,0.00016848,2]
[322892000,1713481838364,-2342.65,0.00016848,2]
[322892001,1713481838373,-2342.65,0.00016848,2]
[322892002,1713481838382,-500.0,0.00016849,2]
[322892003,1713481838392,-1336.79,0.00016849,2]
[322892004,1713481838401,-221.24647722,0.00016849,2]
[322892005,1713481838411,-560.13910716,0.00016849,2]
[322892006,1713481838419,-260.84201842,0.00016849,2]
[322892007,1713481838429,-3699.85,0.00016849,2]
[322892008,1713481838438,-500.0,0.00016849,2]
[322892009,1713481838448,-1048.69,0.00016849,2]
[322892010,1713481838457,-500.0,0.00016849,2]
[322892011,1713481838467,-1862.11,0.00016849,2]
[322892012,1713481838476,-500.0,0.00016849,2]
[322892013,1713481838486,-644.71,0.00016849,2]
[322892014,1713481838495,-500.0,0.00016849,2]
[322892015,1713481838503,-3568.2,0.00016849,2]
[322892016,1713481838513,-623.82,0.00016849,2]
[322892017,1713481838523,-1255.29,0.00016849,2]
[322892018,1713481838533,-500.0,0.00016849,2]
[322892019,1713481838542,-500.0,0.00016849,2]
[322892020,1713481838551,-2045.73,0.00016849,2]
[322892021,1713481838561,-1282.88,0.00016849,2]
[322892022,1713481838571,-977.86,0.00016849,2]
[322892023,1713481838580,-2469.61,0.00016849,2]
[322892024,1713481838589,-500.0,0.00016849,2]
[322892025,1713481838599,-957.22,0.00016849,2]
[322892026,1713481838607,-2397.35,0.00016849,2]
[322892027,1713481838617,-500.0,0.00016849,2]
[322892028,1713481838626,-841.29,0.00016849,2]
[322892029,1713481838635,-500.0,0.00016849,2]
[322892030,1713481838644,-500.0,0.00016849,2]
[322892031,1713481838653,-1074.11,0.00016849,2]
[322892032,1713481838663,-2142.91,0.00016849,2]
[322892033,1713481838673,-500.0,0.00016849,2]
[322892034,1713481838683,-867.49,0.00016849,2]
[322892035,1713481838692,-500.0,0.00016849,2]
[322892036,1713481838701,-500.0,0.00016849,2]
[322892037,1713481838711,-2040.02,0.00016849,2]
[322892038,1713481838720,-1941.03,0.00016849,2]
[322892039,1713481838729,-500.0,0.00016849,2]
[322892040,1713481838739,-791.36,0.00016849,2]
[322892041,1713481838748,-982.84,0.00016849,2]
[322892042,1713481838758,-500.0,0.00016849,2]
[322892043,1713481838767,-500.0,0.00016849,2]
[322892044,1713481838777,-500.0,0.00016849,2]
[322892045,1713481838786,-546.73,0.00016849,2]
[322892046,1713481838795,-749.93,0.00016849,2]
[322892047,1713481838804,-500.0,0.00016849,2]
[322892048,1713481838813,-500.0,0.00016849,2]
[322892049,1713481838823,-515.27285133,0.00016849,2]
[322892050,1713481838833,-2530.09,0.00016849,2]
[322892051,1713481838842,-1626.37,0.00016849,2]
[322892052,1713481838851,-500.0,0.00016849,2]
[322892053,1713481838861,-500.0,0.00016849,2]
[322892054,1713481838870,-1303.68,0.00016849,2]
[322892055,1713481838879,-1427.07,0.00016849,2]
[322892056,1713481838889,-1952.77,0.00016849,2]
[322892057,1713481838898,-500.0,0.00016849,2]
[322892058,1713481838907,-717.02,0.00016849,2]
[322892059,1713481838916,-2008.45,0.00016849,2]
[322892060,1713481838925,-500.0,0.00016849,2]
[322892061,1713481838934,-1236.6,0.00016849,2]
[322892062,1713481838943,-1250.41,0.00016849,2]
[322892063,1713481838952,-500.0,0.00016849,2]
[322892064,1713481838962,-500.0,0.00016849,2]
[322892065,1713481838971,-887.03,0.00016849,2]
[322892066,1713481838981,-1899.31,0.00016849,2]
[322892067,1713481838990,-695.94,0.00016849,2]
[322892068,1713481838999,-506.06424912,0.00016849,2]
[322892069,1713481839009,-2051.2,0.00016849,2]
[322892070,1713481839018,-500.0,0.00016849,2]
[322892071,1713481839027,-500.0,0.00016849,2]
[322892072,1713481839036,-1263.59,0.00016849,2]
[322892073,1713481839046,-500.0,0.00016849,2]
[322892074,1713481839055,-500.0,0.00016849,2]
[322892075,1713481839064,-500.0,0.00016849,2]
[322892076,1713481839074,-500.0,0.00016849,2]
[322892077,1713481839083,-500.0,0.00016849,2]
[322892078,1713481839092,-500.0,0.00016849,2]
[322892079,1713481839101,-532.66,0.00016849,2]
[322892080,1713481839111,-778.27,0.00016849,2]
[322892081,1713481839122,-500.0,0.00016849,2]
[322892082,1713481839131,-665.17,0.00016849,2]
[322892083,1713481839141,-871.14,0.00016849,2]
[322892084,1713481839150,-621.23,0.00016849,2]
[322892085,1713481839160,-500.0,0.00016849,2]
[322892086,1713481839170,-5023.85,0.00016849,2]
[322892087,1713481839179,-500.0,0.00016849,2]
[322892088,1713481839188,-1305.79,0.00016849,2]
[322892089,1713481839198,-500.0,0.00016849,2]
[322892090,1713481839207,-500.0,0.00016849,2]
[322892091,1713481839216,-726.64,0.00016849,2]
[322892092,1713481839225,-961.45,0.00016849,2]
[322892093,1713481839234,-500.0,0.00016849,2]
[322892094,1713481839244,-500.0,0.00016849,2]
[322892095,1713481839253,-500.0,0.00016849,2]
[322892096,1713481839264,-898.65,0.00016849,2]
[322892097,1713481839274,-1415.3,0.00016849,2]
[322892098,1713481839283,-1341.93,0.00016849,2]
[322892099,1713481839293,-1337.57,0.00016849,2]
[322892100,1713481839303,-1377.34,0.00016849,2]
[322892101,1713481839312,-999.9,0.00016849,2]
[322892102,1713481839322,-500.0,0.00016849,2]
[322892103,1713481839333,-1305.33,0.00016849,2]
[322892104,1713481839342,-500.0,0.00016849,2]
[322892105,1713481839352,-1918.31,0.00016849,2]
[322892106,1713481839361,-966.71,0.00016849,2]
[322892107,1713481839370,-1485.68,0.00016849,2]
[322892108,1713481839380,-500.0,0.00016849,2]
[322892109,1713481839389,-1138.91,0.00016849,2]
[322892110,1713481839399,-500.0,0.00016849,2]
[322892111,1713481839409,-500.0,0.00016849,2]
[322892112,1713481839418,-1955.22,0.00016849,2]
[322892113,1713481839427,-559.86,0.00016849,2]
[322892114,1713481839435,-500.0,0.00016849,2]
[322892115,1713481839445,-641.65,0.00016849,2]
[322892116,1713481839454,-500.0,0.00016849,2]
[322892117,1713481839463,-500.0,0.00016849,2]
[322892118,1713481839473,-1246.48,0.00016849,2]
[322892119,1713481839482,-500.0,0.00016849,2]
[322892120,1713481839491,-4474.84,0.00016849,2]
[322892121,1713481839500,-500.0,0.00016849,2]
[322892122,1713481839510,-500.0,0.00016849,2]
[322892123,1713481839519,-607.37,0.00016849,2]
[322892124,1713481839529,-500.0,0.00016849,2]
[322892125,1713481839538,-517.63835169,0.00016849,2]
[322892126,1713481839547,-1248.08,0.00016849,2]
[322892127,1713481839557,-500.0,0.00016849,2]
[322892128,1713481839566,-623.83,0.00016849,2]
[322892129,1713481839576,-764.9,0.00016849,2]
[322892130,1713481839585,-556.09,0.00016849,2]
[322892131,1713481839594,-316.13169504,0.00016849,2]
[322892132,1713481839603,-500.0,0.00016849,2]
[322892133,1713481839612,-990.36,0.00016849,2]
[322892134,1713481839622,-500.0,0.00016849,2]
[322892135,1713481839631,-765.8,0.00016849,2]
[322892136,1713481839640,-500.0,0.00016849,2]
[322892137,1713481839649,-186.23596096,0.00016849,2]
[322892138,1713481839658,-500.0,0.00016849,2]
[322892139,1713481839670,-500.0,0.00016849,2]
[322892140,1713481839679,-500.0,0.00016849,2]
[322892141,1713481839688,-971.46,0.00016849,2]
[322892142,1713481839698,-330.17,0.00016849,2]
[322892143,1713481839707,-500.0,0.00016849,2]
[322892144,1713481839717,-500.0,0.00016849,2]
[322892145,1713481839726,-2707.79,0.00016849,2]
[322892146,1713481839735,-500.0,0.00016849,2]
[322892147,1713481839747,-944.21,0.00016849,2]
[322892148,1713481839756,-500.0,0.00016849,2]
[322892149,1713481839766,-580.92,0.00016849,2]
[322892150,1713481839775,-500.0,0.00016849,2]
[322892151,1713481839784,-500.0,0.00016849,2]
[322892152,1713481839793,-500.0,0.00016849,2]
[322892153,1713481839802,-500.0,0.00016849,2]
[322892154,1713481839812,-2294.65,0.00016849,2]
[322892155,1713481839821,-500.0,0.00016849,2]
[322892156,1713481839831,-500.0,0.00016849,2]
[322892157,1713481839840,-500.0,0.00016849,2]
[322892158,1713481839849,-1069.26,0.00016849,2]
[322892159,1713481839859,-3998.28,0.00016849,2]
[322892160,1713481839868,-553.53,0.00016849,2]
[322892161,1713481839877,-500.0,0.00016849,2]
[322892162,1713481839886,-1130.81,0.00016849,2]
[322892163,1713481839895,-998.94,0.00016849,2]
[322892164,1713481839905,-1255.67,0.00016849,2]
[322892165,1713481839914,-500.0,0.00016849,2]
[322892167,1713481839924,-1177.26,0.00016849,2]
[322892169,1713481839933,-500.0,0.00016849,2]
[322892170,1713481839943,-500.0,0.00016849,2]
[322892171,1713481839952,-719.71,0.00016849,2]
[322892172,1713481839961,-500.0,0.00016849,2]
[322892173,1713481839970,-500.0,0.00016849,2]
[322892174,1713481839979,-500.0,0.00016849,2]
[322892175,1713481839988,-2173.33,0.00016849,2]
[322892176,1713481839997,-500.0,0.00016849,2]
[322892177,1713481840007,-500.0,0.00016849,2]
[322892178,1713481840016,-500.0,0.00016849,2]
[322892179,1713481840025,-1625.47,0.00016849,2]
[322892180,1713481840034,-1668.98,0.00016849,2]
[322892181,1713481840043,-1228.68,0.00016849,2]
[322892182,1713481840052,-500.0,0.00016849,2]
[322892183,1713481840061,-500.0,0.00016849,2]
[322892184,1713481840070,-500.0,0.00016849,2]
[322892185,1713481840079,-595.51,0.00016849,2]
[322892186,1713481840087,-500.0,0.00016849,2]
[322892187,1713481840097,-500.0,0.00016849,2]
[322892188,1713481840106,-1556.98,0.00016849,2]
[322892189,1713481840115,-912.19,0.00016849,2]
[322892190,1713481840124,-2283.41,0.00016849,2]
[322892191,1713481840133,-1660.73,0.00016849,2]
[322892192,1713481840142,-1904.73,0.00016849,2]
[322892193,1713481840151,-500.0,0.00016849,2]
[322892194,1713481840161,-500.0,0.00016849,2]
[322892195,1713481840170,-529.15,0.00016849,2]
[322892196,1713481840179,-2171.43,0.00016849,2]
[322892197,1713481840189,-538.19,0.00016849,2]
[322892198,1713481840198,-1097.76,0.00016849,2]
[322892199,1713481840207,-773.02,0.00016849,2]
[322892200,1713481840216,-500.0,0.00016849,2]
[322892201,1713481840226,-528.91,0.00016849,2]
[322892202,1713481840235,-1863.57,0.00016849,2]
[322892203,1713481840244,-500.0,0.00016849,2]
[322892204,1713481840253,-1682.64,0.00016849,2]
[322892205,1713481840263,-500.0,0.00016849,2]
[322892206,1713481840272,-737.62,0.00016849,2]
[322892207,1713481840282,-3816.61,0.00016849,2]
[322892208,1713481840291,-824.03,0.00016849,2]
[322892209,1713481840301,-500.0,0.00016849,2]
[322892210,1713481840310,-500.0,0.00016849,2]
[322892211,1713481840319,-1876.21,0.00016849,2]
[322892212,1713481840329,-500.0,0.00016849,2]
[322892213,1713481840338,-500.0,0.00016849,2]
[322892214,1713481840347,-1982.11,0.00016849,2]
[322892215,1713481840357,-1784.97,0.00016849,2]
[322892216,1713481840366,-1176.9,0.00016849,2]
[322892217,1713481840375,-425.66177434,0.00016849,2]
[322892218,1713481840384,-500.0,0.00016849,2]
[322892219,1713481840392,-500.0,0.00016849,2]
[322892220,1713481840402,-500.0,0.00016849,2]
[322892221,1713481840410,-500.0,0.00016849,2]
[322892222,1713481840420,-1117.98,0.00016849,2]
[322892223,1713481840429,-1064.62,0.00016849,2]
[322892224,1713481840438,-500.0,0.00016849,2]
[322892225,1713481840448,-169.10026433,0.00016849,2]
[322892226,1713481840457,-500.0,0.00016849,2]
[322892227,1713481840467,-500.0,0.00016849,2]
[322892228,1713481840476,-500.0,0.00016849,2]
[322892229,1713481840485,-875.88,0.00016849,2]
[322892230,1713481840494,-523.79,0.00016849,2]
[322892231,1713481840503,-2113.21,0.00016849,2]
[322892232,1713481840513,-500.0,0.00016849,2]
[322892233,1713481840522,-500.0,0.00016849,2]
[322892234,1713481840532,-2169.95,0.00016849,2]
[322892235,1713481840543,-500.0,0.00016849,2]
[322892236,1713481840554,-837.97,0.00016849,2]
[322892237,1713481840564,-5000.0,0.00016849,2]
[322892238,1713481840573,-500.0,0.00016849,2]
[322892239,1713481840584,-500.0,0.00016849,2]
[322892240,1713481840593,-1406.57,0.00016849,2]
[322892241,1713481840602,-1890.65,0.00016849,2]
[322892242,1713481840611,-500.0,0.00016849,2]
[322892243,1713481840620,-500.0,0.00016849,2]
[322892244,1713481840629,-500.0,0.00016849,2]
[322892245,1713481840638,-722.01,0.00016849,2]
[322892246,1713481840648,-500.0,0.00016849,2]
[322892247,1713481840657,-969.76,0.00016849,2]
[322892248,1713481840671,-500.0,0.00016849,2]
[322892249,1713481840682,-500.0,0.00016849,2]
[322892250,1713481840691,-500.0,0.00016849,2]
[322892251,1713481840700,-1323.5,0.00016849,2]
[322892252,1713481840710,-500.0,0.00016849,2]
[322892253,1713481840719,-635.95,0.00016849,2]
[322892254,1713481840729,-500.0,0.00016849,2]
[322892255,1713481840738,-500.0,0.00016849,2]
[322892256,1713481840748,-500.0,0.00016849,2]
[322892257,1713481840758,-500.0,0.00016849,2]
[322892258,1713481840768,-500.0,0.00016849,2]
[322892259,1713481840778,-1928.44,0.00016849,2]
[322892260,1713481840789,-510.2,0.00016849,2]
[322892261,1713481840799,-500.0,0.00016849,2]
[322892262,1713481840809,-1117.26,0.00016849,2]
[322892263,1713481840818,-500.0,0.00016849,2]
[322892264,1713481840828,-500.0,0.00016849,2]
[322892265,1713481840838,-590.46,0.00016849,2]
[322892266,1713481840849,-1531.04,0.00016849,2]
[322892267,1713481840858,-500.0,0.00016849,2]
[322892268,1713481840867,-2430.91,0.00016849,2]
[322892269,1713481840877,-500.0,0.00016849,2]
[322892270,1713481840886,-500.0,0.00016849,2]
[322892271,1713481840895,-500.0,0.00016849,2]
[322892272,1713481840904,-500.0,0.00016849,2]
[322892273,1713481840913,-759.66,0.00016849,2]
[322892274,1713481840922,-500.0,0.00016849,2]
[322892275,1713481840932,-1906.02,0.00016849,2]
[322892276,1713481840941,-500.0,0.00016849,2]
[322892277,1713481840951,-500.0,0.00016849,2]
[322892278,1713481840961,-3777.03,0.00016849,2]
[322892279,1713481840970,-500.0,0.00016849,2]
[322892280,1713481840980,-500.0,0.00016849,2]
[322892281,1713481840990,-963.76,0.00016849,2]
[322892282,1713481840999,-1998.13,0.00016849,2]
[322892283,1713481841008,-500.0,0.00016849,2]
[322892284,1713481841018,-558.63,0.00016849,2]
[322892285,1713481841029,-500.0,0.00016849,2]
[322892286,1713481841040,-1564.45,0.00016849,2]
[322892287,1713481841050,-970.91,0.00016849,2]
[322892288,1713481841060,-615.39,0.00016849,2]
[322892289,1713481841069,-500.0,0.00016849,2]
[322892290,1713481841079,-3608.46,0.00016849,2]
[322892291,1713481841091,-500.0,0.00016849,2]
[322892292,1713481841102,-500.0,0.00016849,2]
[322892293,1713481841112,-706.05,0.00016849,2]
[322892294,1713481841123,-837.58,0.00016849,2]
[322892295,1713481841133,-500.0,0.00016849,2]
[322892296,1713481841143,-500.0,0.00016849,2]
[322892297,1713481841153,-2948.48,0.00016849,2]
[322892298,1713481841162,-500.0,0.00016849,2]
[322892299,1713481841171,-500.0,0.00016849,2]
[322892300,1713481841180,-917.21,0.00016849,2]
[322892301,1713481841189,-500.0,0.00016849,2]
[322892302,1713481841199,-1465.47,0.00016849,2]
[322892303,1713481841208,-975.74,0.00016849,2]
[322892304,1713481841218,-500.0,0.00016849,2]
[322892305,1713481841514,-500.0,0.00016849,2]
[322892306,1713481841525,-8045.97,0.00016849,2]
[322892307,1713481841534,-955.89,0.00016849,2]
[322892308,1713481841544,-500.0,0.00016849,2]
[322892309,1713481841553,-770.13,0.00016849,2]
[322892310,1713481841562,-6372.17,0.00016849,2]
[322892311,1713481841571,-685.86,0.00016849,2]
[322892312,1713481841581,-151.37722752,0.00016849,2]
[322892313,1713481841590,-775.98,0.00016849,2]
[322892314,1713481841600,-500.0,0.00016849,2]
[322892315,1713481841609,-11532.76,0.00016849,2]
[322892316,1713481841618,-1381.23,0.00016849,2]
[322892317,1713481841628,-878.83,0.00016849,2]
[322892318,1713481841638,-500.0,0.00016849,2]
[322892319,1713481841652,-398.42294797,0.00016849,2]
[322892320,1713481841693,-21469.57,0.00016849,2]
[322892321,1713481841702,-605.61,0.00016849,2]
[322892322,1713481841712,-589.99,0.00016849,2]
[322892323,1713481841722,-500.0,0.00016849,2]
[322892324,1713481841731,-500.0,0.00016849,2]
[322892325,1713481841742,-634.17,0.00016849,2]
[322892326,1713481841751,-964.87,0.00016849,2]
[322892327,1713481841764,-1748.2,0.00016849,2]
[322892328,1713481841773,-500.0,0.00016849,2]
[322892329,1713481841782,-500.0,0.00016849,2]
[322892330,1713481841792,-621.07,0.00016849,2]
[322892331,1713481841800,-5457.06,0.00016849,2]
[322892332,1713481841810,-500.0,0.00016849,2]
[322892333,1713481841819,-530.2483497,0.00016849,2]
[322892334,1713481841829,-500.0,0.00016849,2]
[322892335,1713481841839,-2728.33,0.00016849,2]
[322892336,1713481841850,-632.24,0.00016849,2]
[322892337,1713481841860,-500.0,0.00016849,2]
[322892338,1713481841871,-500.0,0.00016849,2]
[322892339,1713481841882,-44925.9,0.00016849,2]
[322892340,1713481841892,-500.0,0.00016849,2]
[322892341,1713481841901,-500.0,0.00016849,2]
[322892342,1713481841912,-972.76,0.00016849,2]
[322892343,1713481841921,-500.0,0.00016849,2]
[322892344,1713481841931,-1851.62,0.00016849,2]
[322892345,1713481841941,-500.0,0.00016849,2]
[322892346,1713481841951,-606.34,0.00016849,2]
[322892347,1713481841960,-667.2,0.00016849,2]
[322892348,1713481841970,-500.0,0.00016849,2]
[322892349,1713481841979,-6618.73,0.00016849,2]
[322892350,1713481841989,-2041.54,0.00016849,2]
[322892351,1713481841999,-500.0,0.00016849,2]
[322892352,1713481842009,-500.0,0.00016849,2]
[322892353,1713481842021,-529.29,0.00016849,2]
[322892354,1713481842031,-646.87,0.00016849,2]
[322892355,1713481842042,-500.0,0.00016849,2]
[322892356,1713481842052,-500.0,0.00016849,2]
[322892357,1713481842063,-500.0,0.00016849,2]
[322892358,1713481842074,-35125.5,0.00016849,2]
[322892359,1713481842084,-500.0,0.00016849,2]
[322892360,1713481842094,-500.0,0.00016849,2]
[322892361,1713481842104,-2537.96,0.00016849,2]
[322892362,1713481842114,-500.0,0.00016849,2]
[322892363,1713481842125,-500.0,0.00016849,2]
[322892364,1713481842134,-500.0,0.00016849,2]
[322892365,1713481842143,-500.0,0.00016849,2]
[322892366,1713481842153,-6374.75,0.00016849,2]
[322892367,1713481842162,-500.0,0.00016849,2]
[322892368,1713481842171,-500.0,0.00016849,2]
[322892369,1713481842180,-1265.19,0.00016849,2]
[322892370,1713481842189,-500.0,0.00016849,2]
[322892371,1713481842198,-6275.64,0.00016849,2]
[322892372,1713481842207,-987.37,0.00016849,2]
[322892373,1713481842216,-561.47,0.00016849,2]
[322892374,1713481842225,-500.0,0.00016849,2]
[322892375,1713481842234,-500.0,0.00016849,2]
[322892376,1713481842243,-500.0,0.00016849,2]
[322892377,1713481842253,-2073.42,0.00016849,2]
[322892378,1713481842263,-560.44,0.00016849,2]
[322892380,1713481842273,-500.0,0.00016849,2]
[322892381,1713481842282,-1072.91,0.00016849,2]
[322892382,1713481842292,-500.0,0.00016849,2]
[322892383,1713481842301,-1191.4,0.00016849,2]
[322892384,1713481842310,-500.0,0.00016849,2]
[322892385,1713481842320,-500.0,0.00016849,2]
[322892387,1713481842329,-7665.68,0.00016849,2]
[322892388,1713481842339,-500.0,0.00016849,2]
[322892389,1713481842348,-525.8,0.00016849,2]
[322892390,1713481842357,-619.69,0.00016849,2]
[322892391,1713481842367,-500.0,0.00016849,2]
[322892392,1713481842376,-500.0,0.00016849,2]
[322892393,1713481842386,-500.0,0.00016849,2]
[322892394,1713481842395,-1132.86,0.00016849,2]
[322892395,1713481842404,-634.27,0.00016849,2]
[322892396,1713481842414,-500.0,0.00016849,2]
[322892397,1713481842423,-1046.45,0.00016849,2]
[322892399,1713481842432,-500.0,0.00016849,2]
[322892401,1713481842442,-500.0,0.00016849,2]
[322892402,1713481842451,-500.0,0.00016849,2]
[322892404,1713481842461,-3762.31,0.00016849,2]
[322892405,1713481842470,-535.8,0.00016849,2]
[322892406,1713481842479,-500.0,0.00016849,2]
[322892407,1713481842489,-3741.15,0.00016849,2]
[322892408,1713481842498,-723.57,0.00016849,2]
[322892409,1713481842508,-500.0,0.00016849,2]
[322892410,1713481842520,-959.15,0.00016849,2]
[322892412,1713481842529,-500.0,0.00016849,2]
[322892414,1713481842538,-692.51,0.00016849,2]
[322892415,1713481842547,-500.0,0.00016849,2]
[322892417,1713481842557,-7577.18,0.00016849,2]
[322892420,1713481842568,-1310.1,0.00016849,2]
[322892421,1713481842577,-500.0,0.00016849,2]
[322892422,1713481842587,-500.0,0.00016849,2]
[322892423,1713481842596,-500.0,0.00016849,2]
[322892424,1713481842606,-1699.06,0.00016849,2]
[322892425,1713481842615,-500.0,0.00016849,2]
[322892426,1713481842625,-500.0,0.00016849,2]
[322892427,1713481842634,-3220.29,0.00016849,2]
[322892428,1713481842644,-6003.22,0.00016849,2]
[322892429,1713481842654,-500.0,0.00016849,2]
[322892430,1713481842663,-500.0,0.00016849,2]
[322892431,1713481842674,-937.17,0.00016849,2]
[322892432,1713481842684,-500.0,0.00016849,2]
[322892433,1713481842694,-500.0,0.00016849,2]
[322892434,1713481842703,-7493.23,0.00016849,2]
[322892435,1713481842714,-500.0,0.00016849,2]
[322892436,1713481842723,-1034.47,0.00016849,2]
[322892437,1713481842733,-500.0,0.00016849,2]
[322892438,1713481842743,-2554.26,0.00016849,2]
[322892439,1713481842752,-500.0,0.00016849,2]
[322892440,1713481842764,-845.88,0.00016849,2]
[322892441,1713481842773,-500.0,0.00016849,2]
[322892442,1713481842783,-13638.01,0.00016849,2]
[322892443,1713481842793,-722.4,0.00016849,2]